Cogmind - Beta 12 @@@ ROGUE MODE // 2023.05.25 @ 21:17:58 Player: Yallen Result: Destroyed by H-61 Shepherd with Heavy Assault Cannon Performance ------------- Evolutions (2) 1000 Regions Visited (5) 1000 Robots Destroyed (51) 255 Value Destroyed (1070) 1070 Prototype IDs (7) 140 Alien Tech Used (0) 0 Bonus (-54) -54 TOTAL SCORE: 3411 Bonus ------- Follower Combat Kills 68 Friendly Fire -122 Cogmind --------- Core Integrity 0/550 Matter 300/300 Energy 100/100 System Corruption 0% Temperature Cool (9) Movement Core (200) Ox3 Location -8/Materials Parts ------- > --- POWER (1) -------- (None) > --- PROPULSION (3) --- (None) > --- UTILITY (5) ------ Medium Storage Unit Advanced Visual Processing Unit > --- WEAPON (2) ------- (None) > --- INVENTORY (10) --- Improved Ion Engine Improved Ion Engine Improved Treads Sensor Array ECM Suite Power Shielding System Shield Compact Ion Cannon Peak State ------------ > --- POWER ------------ Makeshift Power Source > --- PROPULSION ------- VSS Leg VSS Leg VSS Leg > --- UTILITY ---------- Medium Storage Unit Sensor Array Sensor Drone Bay > --- WEAPON ----------- Light Assault Rifle Light Assault Rifle > --- INVENTORY -------- Ion Engine VSS Leg ECM Suite Power Shielding Improved Utility Shielding Light Armor Plating Light Assault Rifle Light Assault Rifle Mining Laser Heavy Explosive Trap [Rating: 26] Favorites ----------- Power Improved Ion Engine Engine Improved Ion Engine Propulsion Light Treads Treads Light Treads Leg VSS Leg Wheel Wheel Utility Medium Storage Unit Device Sensor Array Storage Medium Storage Unit Processor Improved Targeting Computer Protection Light Armor Plating Weapon Light Assault Rifle Energy Gun Medium Laser Energy Cannon Compact Ion Cannon Ballistic Gun Light Assault Rifle Ballistic Cannon Light Cannon Build | -11 -10 -10 -9 -9 -8 ------- Run | Jun Mat Min Mat Sto Mat Slots Evolved 4 | . . . 2 . 2 Power . | . . . . . . Propulsion 1 | . . . 1 . . Utility 3 | . . . 1 . 2 Weapon . | . . . . . . Parts Attached 71 | 7 15 4 8 31 6 Power 13 | 1 3 . 3 5 1 Engine 13 | 1 3 . 3 5 1 Core . | . . . . . . Reactor . | . . . . . . Propulsion 19 | 2 3 1 4 9 . Treads 11 | 2 . . . 9 . Leg 3 | . . . 3 . . Wheel 5 | . 3 1 1 . . Hover . | . . . . . . Flight . | . . . . . . Utility 17 | 2 3 3 1 5 3 Device 5 | 1 . 2 1 . 1 Storage 3 | 1 1 . . 1 . Processor 3 | . 1 . . 1 1 Hackware . | . . . . . . Protection 6 | . 1 1 . 3 1 Artifact . | . . . . . . Weapon 22 | 2 6 . . 12 2 Energy Gun 3 | 1 . . . 2 . Energy Cannon 3 | . . . . 3 . Ballistic Gun 15 | 1 5 . . 7 2 Ballistic Cannon 1 | . 1 . . . . Launcher . | . . . . . . Special Weapon . | . . . . . . Impact Weapon . | . . . . . . Slashing Weapon . | . . . . . . Piercing Weapon . | . . . . . . Special Melee Weapon . | . . . . . . Unidentified Prototypes 5 | . . 1 . 4 . Parts Lost 13 | . 2 . . . 11 Power 1 | . . . . . 1 Propulsion 4 | . 1 . . . 3 Utility 4 | . 1 . . . 3 Weapon 4 | . . . . . 4 Highest Loss Streak 11 | . 1 . . . 11 To Critical Strikes . | . . . . . . Average Slot Usage (%) 96 | . 99 100 99 95 90 Engine 11 | . 14 14 11 11 8 Treads 15 | . 16 . . 22 22 Leg 3 | . . . 10 6 . Wheel 9 | . 11 28 22 . . Device 6 | . 4 6 22 7 1 Storage 11 | . 14 14 11 11 9 Processor 7 | . 7 7 . 4 16 Protection 6 | . 2 . . 10 15 Ballistic Gun 21 | . 24 28 22 19 16 Naked Turns . | . . . . . . Heaviest Build 32 | 13 20 29 32 31 29 Greatest Support 69 | 40 40 20 36 69 69 Greatest Overweight (x) 7 | 3 1 1 1 1 7 Average Overweight (x) . | . . . . . . Largest Inventory Capacity 10 | 8 10 10 10 10 10 Average Capacity 9 | 7 9 10 10 10 10 Most Carried 10 | 4 10 10 10 10 10 Average Carried 8 | 2 6 9 8 8 9 Final Capacity 10 | 8 10 10 10 10 10 Final Carried 10 | 3 10 10 10 9 8 Class Distribution -------------------- 50% | Scavenger-Mutant 49% | Mutant Dominant Class ---------------- Mutant | -10/Materials Scavenger-Mutant | -10/Mines Scavenger-Mutant | -9/Materials Scavenger-Mutant | -9/Storage Mutant | -8/Materials Resources | -11 -10 -10 -9 -9 -8 ----------- Run | Jun Mat Min Mat Sto Mat Matter Collected 1717 | 294 344 68 114 614 283 Remotely . | . . . . . . Salvage Created 1823 | 96 328 36 110 780 473 Parts 148 | 8 30 8 6 67 29 Haulers Intercepted 4 | . 1 . . 3 . Recyclers Shooed 5 | . 1 1 1 2 . Parts Field Recycled . | . . . . . . Retrieved Matter . | . . . . . . Parts Self-Destructed . | . . . . . . Prevented . | . . . . . . Kills | -11 -10 -10 -9 -9 -8 ------- Run | Jun Mat Min Mat Sto Mat Combat Hostiles Destroyed 29 | . 9 1 1 10 8 Guns 28 | . 9 1 1 9 8 Cannons 1 | . . . . 1 . Classes Destroyed 12 | 2 5 . 1 2 2 Worker 6 | . 2 . . 4 . Builder 1 | . . . . . 1 Tunneler 3 | 2 . 1 . . . Hauler 4 | . 1 . . 3 . Recycler 4 | 1 . . . 1 2 Operator 1 | . . . . 1 . Watcher 2 | . 1 . . 1 . Swarmer 9 | . 3 1 . 2 3 Grunt 11 | . 6 . . 3 2 Brawler 1 | . . . . 1 . Sentry 7 | . . . 1 4 2 Specialist 1 | . . . . . 1 Thug 1 | . . . 1 . . Best Kill Streak 4 | 3 3 1 1 4 3 Combat Bots Only 3 | . 3 1 1 3 3 Max Kills in Single Turn 1 | 1 1 1 1 1 1 Gunslinging . | . . . . . . Exploded . | . . . . . . Melee . | . . . . . . Uniques/NPCs Destroyed . | . . . . . . Combat | -11 -10 -10 -9 -9 -8 -------- Run | Jun Mat Min Mat Sto Mat Damage Taken 3384 | . 696 87 121 570 1910 Core 814 | . 102 50 18 90 554 Absorbed by Shields . | . . . . . . Redirected to Shielding 101 | . . . . . 101 Core Remaining (%) 70 | 100 . 39 . 73 . Volleys Fired 223 | 8 55 11 15 86 48 Largest 2 | 2 2 2 2 2 2 Hottest 113 | 70 55 40 40 113 46 Shots Fired 431 | 16 110 22 30 171 82 Gun 392 | 16 90 22 30 152 82 Cannon 39 | . 20 . . 19 . Launcher . | . . . . . . Special . | . . . . . . Kinetic 404 | 8 110 22 30 152 82 Thermal 27 | 8 . . . 19 . Explosive . | . . . . . . Electromagnetic . | . . . . . . Robot Hit Streak 22 | 4 6 5 12 22 20 Robot Miss Streak 7 | 3 5 2 1 3 7 Penetration Max . | . . . . . . Secondary Targets 3 | . 2 . . 1 . Max Gunslinging Chain 1 | . 1 . . 1 . Shots Hit Robots 265 | 8 55 12 24 105 61 Core Hits 94 | 3 19 4 8 39 21 Critical Kills . | . . . . . . Critical Parts Destroyed 1 | . 1 . . . . Critical Strikes 2 | . 2 . . . . Destroy 1 | . 1 . . . . Blast 1 | . 1 . . . . Melee Attacks . | . . . . . . Impact . | . . . . . . Slashing . | . . . . . . Piercing . | . . . . . . Sneak Attacks . | . . . . . . Combat Hostiles . | . . . . . . Follow-up Attacks . | . . . . . . Damage Inflicted 3358 | 102 647 97 202 1361 949 Guns 2935 | 102 446 97 202 1140 948 Cannons 422 | . 201 . . 221 . Explosions . | . . . . . . Melee . | . . . . . . Ramming 1 | . . . . . 1 Kinetic 3085 | 51 647 97 202 1140 948 Thermal 272 | 51 . . . 221 . Explosive . | . . . . . . Electromagnetic . | . . . . . . Impact . | . . . . . . Slashing . | . . . . . . Piercing . | . . . . . . Highest Corruption 3 | . . . . 3 . Average Corruption 2 | . . . . 2 . Corruption Purged . | . . . . . . Corruption Blocked . | . . . . . . Effects 7 | . . . . 7 . Message Errors 3 | . . . . 3 . Matter Fused 2 | . . . . 2 . Data Loss (minor) 2 | . . . . 2 . Overload Shots . | . . . . . . Overflow Damage 18 | . 5 . . 13 . Projectiles 18 | . 5 . . 13 . Explosions . | . . . . . . Melee . | . . . . . . Knockbacks 2 | . 2 . . . . Impact . | . . . . . . Kinetic 2 | . 2 . . . . Secondary . | . . . . . . Self-Inflicted Damage . | . . . . . . Shots . | . . . . . . Rammed 1 | . . . . . 1 Targets Rammed 1 | . . . . . 1 Kicked . | . . . . . . Crushed . | . . . . . . Highest Temperature 409 | 27 154 . 24 409 20 Average Temperature 71 | 13 66 . 21 85 7 Received Heat Transfer 885 | . 282 . 63 162 378 Effects 4 | . . . . 4 . Energy Bleed 1 | . . . . 1 . Interference 3 | . . . . 3 . Siege Activations . | . . . . . . Robots Corrupted . | . . . . . . Combat Hostiles . | . . . . . . Parts Fried . | . . . . . . Impact Corruptions . | . . . . . . Robots Melted . | . . . . . . Combat Hostiles . | . . . . . . Parts Melted . | . . . . . . Heat Transferred 444 | 148 . . . 296 . Parts Sabotaged . | . . . . . . Parts Stolen . | . . . . . . Parts Stripped . | . . . . . . Power Chain Reactions . | . . . . . . Missiles Intercepted . | . . . . . . Alert | -11 -10 -10 -9 -9 -8 ------- Run | Jun Mat Min Mat Sto Mat Peak Influence 266 | 15 141 143 86 253 266 Initial 86 | . 9 54 33 35 86 Average 107 | 8 77 69 58 159 143 Maximum Alert Level 1 | . . . . 1 1 Low Security (%) 84 | 100 100 100 100 69 65 Level 1 15 | . . . . 30 34 Level 2 . | . . . . . . Level 3 . | . . . . . . Level 4 . | . . . . . . Level 5 . | . . . . . . High Security . | . . . . . . Max Security . | . . . . . . Squads Dispatched 9 | . 3 . . 3 3 Investigation 2 | . 1 . . 1 . Extermination . | . . . . . . Reinforcement 5 | . 2 . . 1 2 Assault . | . . . . . . Garrison 2 | . . . . 1 1 Intercept . | . . . . . . Searches Triggered . | . . . . . . Construction Impeded . | . . . . . . Haulers Reinforced . | . . . . . . Active Scanning Responses . | . . . . . . Cargo Convoy Interrupts . | . . . . . . Stealth | -11 -10 -10 -9 -9 -8 --------- Run | Jun Mat Min Mat Sto Mat Distress Signals 7 | . 3 . 1 1 2 Communications Jammed . | . . . . . . Distress Signals . | . . . . . . Times Spotted 57 | . 13 6 5 18 15 Peak Tracking Total 6 | . 3 3 3 6 6 Tactical Retreats 1 | . . . . 1 . Traps | -11 -10 -10 -9 -9 -8 ------- Run | Jun Mat Min Mat Sto Mat Traps Triggered 2 | . . . . 2 . Indirectly . | . . . . . . Trap Hack Attempts . | . . . . . . Triggered . | . . . . . . Disarmed . | . . . . . . Reprogrammed . | . . . . . . Reused . | . . . . . . Traps Extracted . | . . . . . . Installed . | . . . . . . Triggered . | . . . . . . Most Traps Carried 1 | . . 1 1 1 . Machines | -11 -10 -10 -9 -9 -8 ---------- Run | Jun Mat Min Mat Sto Mat Machines Disabled 6 | . 1 . . 3 2 Max in Single Turn 1 | . 1 . . 1 1 Machines Repaired . | . . . . . . Machines Sabotaged . | . . . . . . Overloaded Fab Kills . | . . . . . . Hacking | -11 -10 -10 -9 -9 -8 --------- Run | Jun Mat Min Mat Sto Mat Machines Accessed 10 | . 1 2 1 5 1 Terminals 9 | . 1 1 1 5 1 Fabricators . | . . . . . . Repair Stations . | . . . . . . Recycling Units . | . . . . . . Scanalyzers . | . . . . . . Garrison Access . | . . . . . . Total Hacks 22 | . 4 3 4 9 2 Successful 13 | . 4 1 3 3 2 Failed 9 | . . 2 1 6 . Catastrophic 1 | . . . . 1 . Database Lockouts . | . . . . . . Manual . | . . . . . . Terminals 21 | . 4 2 4 9 2 Fabricators . | . . . . . . Repair Stations . | . . . . . . Recycling Units . | . . . . . . Scanalyzers . | . . . . . . Garrison Access . | . . . . . . Terminal Hacks 13 | . 4 1 3 3 2 Record 2 | . . . . . 2 Prototype ID Bank 1 | . 1 . . . . Open Door 3 | . . 1 . 2 . Level Access Points 1 | . . . . 1 . Alert Level 1 | . . . 1 . . Dispatch Records 1 | . 1 . . . . Security Status 1 | . 1 . . . . Hauler Manifests 1 | . . . 1 . . Zone Layout 2 | . 1 . 1 . . Fabricator Hacks . | . . . . . . Repair Station Hacks . | . . . . . . Recycling Unit Hacks . | . . . . . . Scanalyzer . | . . . . . . Garrison Access Hacks . | . . . . . . Unauthorized Hacks . | . . . . . . Terminals . | . . . . . . Fabricators . | . . . . . . Repair Stations . | . . . . . . Recycling Units . | . . . . . . Scanalyzers . | . . . . . . Garrison Access . | . . . . . . Data Cores Recovered 2 | . . . . 2 . Used . | . . . . . . Hacking Detections 5 | . 1 1 1 2 . Full Trace Events 1 | . . . . 1 . Feedback Events . | . . . . . . Feedback Blocked . | . . . . . . Robot Schematics Acquired . | . . . . . . Robots Built . | . . . . . . Authchips . | . . . . . . Time . | . . . . . . Total Robot Build Rating . | . . . . . . Part Schematics Acquired . | . . . . . . Parts Built . | . . . . . . Authchips . | . . . . . . Time . | . . . . . . Total Part Build Rating . | . . . . . . Parts Repaired . | . . . . . . Time . | . . . . . . Parts Recycled . | . . . . . . Recycled Matter . | . . . . . . Retrieved Matter . | . . . . . . Retrieved Components . | . . . . . . Parts Scanalyzed . | . . . . . . Part Schematics Acquired . | . . . . . . Parts Damaged . | . . . . . . Bothacking | -11 -10 -10 -9 -9 -8 ------------ Run | Jun Mat Min Mat Sto Mat Used RIF Installer . | . . . . . . Robots Hacked . | . . . . . . Non-combat . | . . . . . . Combat . | . . . . . . Robot Hacks Applied . | . . . . . . Relay Couplers Released . | . . . . . . Fabnet Peak Effective % . | . . . . . . Robots Rewired . | . . . . . . Allies Hacked . | . . . . . . Hacks Repelled . | . . . . . . Allies | -11 -10 -10 -9 -9 -8 -------- Run | Jun Mat Min Mat Sto Mat Total Allies 4 | . . 3 . 1 . Largest Group 3 | . . 3 2 1 . Highest-Rated Group 100 | . . 77 46 100 . Highest-Rated Ally 100 | . . 31 31 100 . Total Orders . | . . . . . . Ally Attacks 25 | . . 19 5 1 . Total Damage 318 | . . 231 62 25 . Kills 7 | . . 5 1 1 . Allies Corrupted . | . . . . . . Allies Melted . | . . . . . . Intel | -11 -10 -10 -9 -9 -8 ------- Run | Jun Mat Min Mat Sto Mat Robot Analysis Total . | . . . . . . Derelict Logs Recovered . | . . . . . . Drone Launches 20 | . . 20 . . . Drone Recoveries 16 | . . . 10 6 . Exploration | -11 -10 -10 -9 -9 -8 ------------- Run | Jun Mat Min Mat Sto Mat Turns Passed 3529 | 205 757 585 270 1142 570 Spaces Moved 2281 | 109 503 620 236 554 259 Core 39 | 19 . . . . 20 Treads 929 | 90 188 . . 412 239 Legs 203 | . . . 61 142 . Wheels 1110 | . 315 620 175 . . Hover . | . . . . . . Flight . | . . . . . . Fastest Speed 50 | 50 80 80 80 90 160 Average Speed 118 | 150 109 86 89 147 163 Slowest Speed 400 | 200 160 95 180 240 400 Overloaded Moves . | . . . . . . Propulsion Burnouts . | . . . . . . Robots Hopped . | . . . . . . Cave-ins Triggered . | . . . . . . Exploration Rate (%) 38 | 5 57 70 15 63 22 Regions Visited 5 Branch Regions 2 Pre-discovered Areas . | . . . . . . Known Exits Taken 2 | . . 1 . 1 . Unknown Exits Taken 3 | 1 1 . 1 . . Scrap Searched 1 | . . 1 . . . Spaces Dug . | . . . . . . Terrain Destroyed 2 | . . . . 2 . Melee . | . . . . . . Projectile 2 | . . . . 2 . AOE . | . . . . . . Terrain Rammed . | . . . . . . Walls Destroyed . | . . . . . . Machines Disabled . | . . . . . . Actions | -11 -10 -10 -9 -9 -8 --------- Run | Jun Mat Min Mat Sto Mat Total 2707 | 135 611 650 270 720 321 Wait . | . . . . . . Move 2276 | 108 502 619 235 553 259 Hop . | . . . . . . Pick Up 78 | 11 24 7 7 24 5 Fast Attach . | . . . . . . Attach 20 | 7 2 . 2 5 4 Detach . | . . . . . . Swap 51 | . 13 4 6 26 2 Drop 54 | 1 15 6 5 25 2 Fire 223 | 8 55 11 15 86 48 Melee . | . . . . . . Ram 1 | . . . . . 1 Kick . | . . . . . . Crush . | . . . . . . Escape Stasis . | . . . . . . Rewire 4 | . . 3 . 1 . Trap . | . . . . . . Miscellaneous . | . . . . . . Route ------- -11/Junkyard -10/Materials -10/Mines -9/Materials -9/Storage -8/Materials History --------- Turn | Location | Event 7 | -11/Junkyard | Discovered new exit (range 16) 206 | -11/Junkyard | Entered Materials 310 | -10/Materials | Build established: Mutant 946 | -10/Materials | Discovered new exit (range 7) 947 | -10/Materials | Build established: Scavenger-Mutant 963 | -10/Materials | Entered Mines 1151 | -10/Mines | Received a Mining Laser from a helpful Derelict 1231 | -10/Mines | Core integrity fell below 50% 1260 | -10/Mines | Found the Drone Emporium 1264 | -10/Mines | Found Prototype Device 1265 | -10/Mines | Identified Sensor Drone Bay 1410 | -10/Mines | Found a hidden stash of uninstalled traps 1475 | -10/Mines | Discovered new exit (range 9) 1488 | -10/Mines | Identified exit to Materials 1548 | -10/Mines | Entered Materials 1548 | -9/Materials | Accompanied by 22 allies 1548 | -9/Materials | Evolved 2 slots: Propulsion x1, Utility x1 1553 | -9/Materials | Led the pair of lost Derelicts to an unsafe place 1709 | -9/Materials | Discovered new exit (range 19) 1818 | -9/Materials | Entered Storage 1818 | -9/Storage | Accompanied by 7 allies 1852 | -9/Storage | Identified exit to Materials 2022 | -9/Storage | Build established: Mutant 2362 | -9/Storage | Build established: Scavenger-Mutant 2728 | -9/Storage | Met 01-MTF 2928 | -9/Storage | Garrison activated, responded to threat 2960 | -9/Storage | Entered Materials 2960 | -8/Materials | Accompanied by 1 ally (01-MTF) 2960 | -8/Materials | Evolved 2 slots: Utility x2 2965 | -8/Materials | 01-MTF left 3059 | -8/Materials | Build established: Mutant 3408 | -8/Materials | Garrison activated, responded to threat 3496 | -8/Materials | Core integrity fell below 50% 3522 | -8/Materials | Core integrity fell below 20% 3530 | -8/Materials | Destroyed by H-61 Shepherd with Heavy Assault Cannon Last Messages --------------- 03461_ G-47 Trooper destroyed. 03462_ K-01 Serf collects debris. 03470_ Penetrated by Slug. 03471_ Hvy. Assault Rifle destroyed. 03475_ Knocked back. 03482_ X-57 Shotgunner destroyed. 03483_ Acquired 70 matter. 03485_ K-01 Serf collects debris. 03489_ Hvy. Assault Rifle destroyed. 03490_ Slammed into K-01 Serf. 03491_ Acquired 30 matter. 03492_ Imp. Ion Engine destroyed. 03493_ The unstable cave ceiling collapses. 03511_ Knocked back. 03516_ Critical hit (Burn: +37). 03520_ Processing Tank disabled. 03522_ Imp. Utility Shielding destroyed. 03525_ Imp. Targeting Computer destroyed. 03525_ Knocked back. 03528_ Critical hit (Burn: +37). Map ----- +----------------------------------------------------+ | ?????????????????????????????????????????????????? | | ?????????????????????????????????????????????????? | | ?????????????????????????????????????????????????? | | ?????????????????????????????????????????????????? | | ?????????????????????????????????????????????????? | | ?????????????????????????????????????????????????? | | ?????????????????????????????????????????????????? | | ?????????????????????????????????????????????????? | | ?????????????????????????????????????????????????? | | ?????????????????????????????????????????????????? | | ?????????????????????????????????????????????????? | | ?????????????????????????????????????????????????? | | ?????????????????????????????????????????????????? | | ?????????????????????????????????????????????????? | | ?????????????????????????????????????????????????? | | ?????????????????????????????????????????????????? | | ??????????????????????###????????????????????????? | | ??????????????????????# ######???????????????????? | | ??????????????????????# #???????????????????? | | ????????#####?????????# """ #????###???????##???? | | ????????#"""######????# """ #####!%####| ###?? | | ??????###"T"##" "###### """ +%*!%=%%!%%= [ | | ??????# #g"""x ######=####* | | ??????# # "" H #??####=###! | | ??????# ! + Y #?????? ??* | | ??????# % =% # @ #????? #??## | | ??????# """*=""" ! # !#????? ? #????? | | ######## """%%""" # "%" #???? ???#??????? | | # # """=* "" # "R" #???? ????????????? | | # """ + """ "" # """ !#??? ?????????????? | | # """ # " # #??? ?????????????? | | # """ # ########?? ??????????????? | | # # ! #????????? ??????????????? | | # # #????????####??????????????? | | ######## * #??????????????????????????? | | ######## ##+#######???????????????????????? | | # # #???????????????????????? | | # # #???????????????????????? | | """ # + """ #???????????????????????? | | """ + [%! # """"" #???????????????????????? | | S """ # ##+### """"" #???????????????????????? | | "" # # = ## """"" #???????????????????????? | | ?" # #" ## """ #???????????????????????? | | ??? # #T ## #???????????????????????? | | ????#+## #" #] #???????????????????????? | | ????# ## # ###########???????????????????????? | | #####+## # #?????????????????????????????????? | | # # #?????????????????????????????????? | | !! [ + #####?????????????????????????????????? | | !! # #?????????????????????????????????????? | +----------------------------------------------------+ Best States ------------- Heat Dissipation 31 Energy Generation 15 Energy Capacity 265 Matter Stores 300 Matter Capacity 300 Sight Range 20 Robot Scan Range 14 Terrain Scan Density 10 Armor Coverage 150 Power Shielding 33 Utility Shielding 66 Evasion (%) 57 Targeting Accuracy 6 Recoil Reduction 3 Item Schematics ----------------- None Robot Schematics ------------------ None Fabricated ------------ Nothing Alien Tech Used ----------------- None Achievements -------------- None Challenges ------------ None Game ------ Seed SwordCombatShifter Manual? 0 Play Time 00:44:33 Cumulative 9.0 hours Start 2023.05.25 @ 20:36:01 End 2023.05.25 @ 21:17:58 Sessions 1 Manual Loads 0 Difficulty Rogue Special Mode None Game No. 3 Rogue 2 Adventurer 1 Explorer 0 Win Type - Total 1 Types 1/0/0/0/0/0/0/0/0 Lore% 5 Gallery% 15 Achievement% 19 Wizard Run 0 Options --------- ASCII 0 Keyboard 0 Movement Arrows Keybinds 0 Fullscreen 1 Font 18/SmallcapsGlow Map View 76x50 Tactical HUD 1 Map Filters NONE Filters NONE Steam 1 RUN: 60f65ddd-2475-4d09-a65c-c601828de179